Cogmind - Beta 16 @@@ ROGUE MODE // 2025.11.26 @ 13:37:08 Player: AngelSpirit Result: Destroyed by 2F-FCA(j) with Overtuned Pulse Rifle Performance ------------- Evolutions (0) 0 Regions Visited (3) 600 Robots Destroyed (9) 45 Value Destroyed (157) 157 Prototype IDs (6) 120 Alien Tech Used (0) 0 Bonus (800) 800 TOTAL SCORE: 1722 Bonus ------- Registered with UFD 300 Met Optimus in HQ 500 Cogmind --------- Core Integrity 0/250 Matter 300/300 Energy 99/100 System Corruption 0% Temperature Cool (12) Movement Core (50) Location -7/Scraptown Parts ------- > --- POWER (1) -------- (None) > --- PROPULSION (2) --- (None) > --- UTILITY (2) ------ (None) > --- WEAPON (2) ------- Makeshift Hammer > --- INVENTORY (5) ---- High-capacity Matter Pod (200) Advanced Sensor Array Advanced Sensor Array A0-MCA's Component Scanner Voltaic Drivehammer (0/40) Peak State ------------ > --- POWER ------------ Makeshift Power Source > --- PROPULSION ------- Wheel Compact Wheel > --- UTILITY ---------- Small Storage Unit Hardened Light Armor Plating > --- WEAPON ----------- Gatling Laser Gauss Cannon > --- INVENTORY -------- Improved Heat Sink High-capacity Matter Pod Advanced Sensor Array Advanced Sensor Array Improved System Shield A0-MCA's Component Scanner Vortex Trap Vortex Trap [Rating: 20] Favorites ----------- Power Light Ion Engine Engine Light Ion Engine Propulsion Wheel Wheel Wheel Utility Terrain Scanner Device Terrain Scanner Storage Small Storage Unit Processor Terrain Scan Processor Protection Hardened Light Armor Plating Weapon Gatling Laser Energy Gun Gatling Laser Energy Cannon Light EM Pulse Cannon Ballistic Gun Minigun Ballistic Cannon Gauss Cannon Launcher Mini Grenade Launcher Impact Weapon Makeshift Hammer Build | -11 -10 -10 -7 ------- Run | Yrd Mat Sub Scr Slots Evolved . | . . . . Power . | . . . . Propulsion . | . . . . Utility . | . . . . Weapon . | . . . . Parts Attached 20 | 6 2 3 9 Power 2 | 1 . . 1 Engine 2 | 1 . . 1 Core . | . . . . Reactor . | . . . . Propulsion 3 | 2 . 1 . Treads . | . . . . Leg . | . . . . Wheel 3 | 2 . 1 . Hover . | . . . . Flight . | . . . . Utility 5 | 1 1 . 3 Device 1 | . . . 1 Storage 1 | 1 . . . Processor 1 | . . . 1 Hackware . | . . . . Protection 2 | . 1 . 1 Artifact . | . . . . Weapon 10 | 2 1 2 5 Energy Gun 2 | . . . 2 Energy Cannon 1 | . . 1 . Ballistic Gun 4 | 2 . 1 1 Ballistic Cannon 1 | . . . 1 Launcher 1 | . 1 . . Special Weapon . | . . . . Impact Weapon 1 | . . . 1 Slashing Weapon . | . . . . Piercing Weapon . | . . . . Special Melee Weapon . | . . . . Unidentified Prototypes . | . . . . Parts Lost 3 | . . . 3 Power . | . . . . Propulsion 2 | . . . 2 Utility . | . . . . Weapon 1 | . . . 1 Highest Loss Streak 2 | . . . 2 To Critical Strikes . | . . . . Average Backups 5 | . 5 8 5 Power . | . . . . Propulsion . | . 1 2 . Utility 4 | . 2 4 5 Weapon . | . 2 2 . Tool/Special . | . . . . Unused Backups 15 | . 4 . 11 Power . | . . . . Propulsion 3 | . 1 . 2 Utility 9 | . 1 . 8 Weapon 3 | . 2 . 1 Tool/Special . | . . . . Average Slot Usage (%) 98 | . 96 100 98 Engine 13 | . 14 14 13 Wheel 27 | . 28 28 27 Device 8 | . . . 10 Storage 8 | . 14 14 6 Processor 5 | . . . 7 Protection 5 | . 11 14 3 Energy Gun 9 | . . . 11 Energy Cannon 3 | . . 13 2 Ballistic Gun 13 | . 27 14 12 Ballistic Cannon 1 | . . . 1 Peak Build Rating 20 | 6 10 11 20 Average Rating 13 | 4 8 10 14 On Entrance 6 | . 6 9 11 Avg Prop Armor Cover (%) . | . . . . Naked Turns 9 | . . . 9 Heaviest Build 25 | 11 16 21 25 Greatest Support 26 | 20 20 26 26 Greatest Overweight (x) 1 | . . 1 1 Average Overweight (x) . | . . . . Largest Inventory Capacity 8 | 8 8 8 8 Average Capacity 6 | 6 8 8 6 Most Carried 8 | . 8 8 8 Average Carried 6 | . 5 7 6 Final Capacity 8 | 8 8 8 5 Final Carried 8 | . 8 8 5 Class Distribution -------------------- 100% | Mutant Dominant Class ---------------- Mutant | -10/Materials Mutant | -10/Subcaves Mutant | -7/Scraptown Resources | -11 -10 -10 -7 ----------- Run | Yrd Mat Sub Scr Matter Collected 913 | 256 442 47 168 Remotely . | . . . . Salvage Created 300 | . 203 97 . Parts 15 | . 13 2 . Haulers Intercepted . | . . . . Recyclers Shooed 1 | . 1 . . Parts Field Recycled . | . . . . Retrieved Matter . | . . . . Parts Self-Destructed 10 | . . 10 . Prevented . | . . . . Parts Restored . | . . . . Kills | -11 -10 -10 -7 ------- Run | Yrd Mat Sub Scr Combat Hostiles Destroyed 6 | . 4 2 . Guns 2 | . 1 1 . Cannons 1 | . . 1 . AOE 3 | . 3 . . Classes Destroyed 5 | . 4 1 . Worker 1 | . 1 . . Recycler 2 | . 2 . . Swarmer 3 | . 3 . . Grunt 1 | . 1 . . Subdweller 2 | . . 2 . Best Kill Streak 6 | . 6 1 . Combat Bots Only 3 | . 3 1 . Max Kills in Single Turn 3 | . 3 1 . Gunslinging . | . . . . Exploded 2 | . 2 . . Melee . | . . . . Uniques/NPCs Destroyed . | . . . . Combat | -11 -10 -10 -7 -------- Run | Yrd Mat Sub Scr Hostile Shots Fired 53 | . 8 . 45 Missed 16 | . 1 . 15 Hits 37 | . 7 . 30 Projectile 37 | . 7 . 30 Critical Strikes 2 | . 1 . 1 Damage Taken 583 | . 58 . 525 Core 253 | . 25 . 228 Absorbed by Shields . | . . . . Core Remaining (%) 100 | 100 . . . Volleys Fired 24 | . 11 12 1 Largest 2 | . 2 2 1 Hottest 86 | . 50 86 40 Shots Fired 41 | . 22 18 1 Gun 32 | . 20 12 . Cannon 7 | . . 6 1 Launcher 2 | . 2 . . Special . | . . . . Kinetic 33 | . 20 12 1 Thermal . | . . . . Explosive 2 | . 2 . . Electromagnetic 6 | . . 6 . Robot Hit Streak 11 | . 8 11 . Robot Miss Streak 4 | . 4 . . Penetration Max . | . . . . Secondary Targets . | . . . . Shots Hit Robots 22 | . 11 11 . Core Hits 12 | . 9 3 . Critical Kills . | . . . . Critical Parts Destroyed 1 | . . 1 . Critical Strikes 1 | . . 1 . Destroy 1 | . . 1 . Melee Attacks . | . . . . Impact . | . . . . Slashing . | . . . . Piercing . | . . . . Sneak Attacks . | . . . . Combat Hostiles . | . . . . Follow-up Attacks . | . . . . Damage Inflicted 583 | . 367 216 . Guns 216 | . 116 100 . Cannons 116 | . . 116 . Explosions 251 | . 251 . . Melee . | . . . . Ramming . | . . . . Kinetic 216 | . 116 100 . Thermal . | . . . . Explosive 251 | . 251 . . Electromagnetic 116 | . . 116 . Impact . | . . . . Slashing . | . . . . Piercing . | . . . . Highest Corruption . | . . . . Average Corruption . | . . . . Corruption Purged . | . . . . Corruption Blocked . | . . . . Overload Shots . | . . . . Overflow Damage . | . . . . Projectiles . | . . . . Explosions . | . . . . Melee . | . . . . Knockbacks . | . . . . Impact . | . . . . Kinetic . | . . . . Secondary . | . . . . Self-Inflicted Damage . | . . . . Shots . | . . . . Rammed . | . . . . Targets Rammed . | . . . . Kicked . | . . . . Crushed . | . . . . Highest Temperature 27 | . 16 . 27 Average Temperature 7 | . 6 . 9 Received Heat Transfer 301 | . 12 . 289 Siege Activations . | . . . . Martial Activations . | . . . . Shielding Activations . | . . . . Robots Disrupted . | . . . . Combat Hostiles . | . . . . Robots Corrupted . | . . . . Combat Hostiles . | . . . . Parts Fried 1 | . . 1 . Impact Corruptions . | . . . . Robots Melted . | . . . . Combat Hostiles . | . . . . Parts Melted . | . . . . Heat Transferred . | . . . . Parts Sabotaged . | . . . . Parts Stolen . | . . . . Parts Stripped . | . . . . Power Chain Reactions . | . . . . Alert | -11 -10 -10 -7 ------- Run | Yrd Mat Sub Scr Maximum Alert Level . | . . . . Low Security (%) 100 | 100 100 . . Level 1 . | . . . . Level 2 . | . . . . Level 3 . | . . . . Level 4 . | . . . . Level 5 . | . . . . High Security . | . . . . Max Security . | . . . . Peak Influence 95 | . 95 . . Initial . | . . . . Average 23 | . 25 . . Influence Increases 144 | . 144 . . Destroy 0b10 Robot/C 80 | . 80 . . Destroy 0b10 Robot/NC 15 | . 15 . . Destroy Leader 10 | . 10 . . Successful Hack 9 | . 9 . . Destroy Structure 15 | . 15 . . Lose Combat Pursuer 15 | . 15 . . Influence Decreases 144 | . 90 54 . Entered New Map 26 | . . 26 . Time Decay 118 | . 90 28 . Squads Dispatched . | . . . . Investigation . | . . . . Extermination . | . . . . Reinforcement . | . . . . Assault . | . . . . Garrison . | . . . . Intercept . | . . . . Searches Triggered . | . . . . Construction Impeded . | . . . . Haulers Reinforced . | . . . . Active Scanning Responses . | . . . . Cargo Convoy Interrupts . | . . . . Stealth | -11 -10 -10 -7 --------- Run | Yrd Mat Sub Scr Distress Signals . | . . . . Communications Jammed . | . . . . Distress Signals . | . . . . Times Spotted 27 | . 8 3 16 Peak Tracking Total 10 | . 5 2 10 Tactical Retreats 1 | . 1 . . Traps | -11 -10 -10 -7 ------- Run | Yrd Mat Sub Scr Traps Triggered . | . . . . Indirectly . | . . . . Trap Hack Attempts . | . . . . Triggered . | . . . . Disarmed 4 | . 4 . . Reprogrammed . | . . . . Reused 1 | . . . 1 Traps Extracted . | . . . . Installed 2 | . . . 2 Triggered . | . . . . Most Traps Carried 2 | . . . 2 Machines | -11 -10 -10 -7 ---------- Run | Yrd Mat Sub Scr Machines Disabled 1 | . . . 1 Max in Single Turn 1 | . . . 1 Machines Repaired . | . . . . Machines Dismantled . | . . . . Machines Sabotaged . | . . . . Overloaded Fab Kills . | . . . . Hacking | -11 -10 -10 -7 --------- Run | Yrd Mat Sub Scr Machines Accessed 16 | . 8 . 8 Terminals 7 | . 7 . . Fabricators . | . . . . Repair Stations . | . . . . Recycling Units 1 | . 1 . . Scanalyzers . | . . . . Garrison Access . | . . . . Total Hacks 69 | . 20 . 49 Successful 57 | . 8 . 49 Failed 12 | . 12 . . Catastrophic 3 | . 3 . . Database Lockouts . | . . . . Manual 1 | . 1 . . Terminals 16 | . 16 . . Fabricators . | . . . . Repair Stations . | . . . . Recycling Units 4 | . 4 . . Scanalyzers . | . . . . Garrison Access . | . . . . Terminal Hacks 55 | . 6 . 49 Record 41 | . . . 41 Robot Analysis 8 | . 1 . 7 Emergency Access Points 2 | . 2 . . Locate Traps 1 | . 1 . . Disarm Traps 1 | . 1 . . Hauler Manifests 1 | . 1 . . Proto ID Catalog 1 | . . . 1 Fabricator Hacks . | . . . . Repair Station Hacks . | . . . . Recycling Unit Hacks 2 | . 2 . . Report Inventory 1 | . 1 . . Retrieve Components 1 | . 1 . . Scanalyzer . | . . . . Garrison Access Hacks . | . . . . Unauthorized Hacks . | . . . . Terminals . | . . . . Fabricators . | . . . . Repair Stations . | . . . . Recycling Units . | . . . . Scanalyzers . | . . . . Garrison Access . | . . . . Data Cores Recovered . | . . . . Used . | . . . . Hacking Detections 8 | . 8 . . Full Trace Events . | . . . . Feedback Events . | . . . . Feedback Blocked . | . . . . Robot Schematics Acquired . | . . . . Robots Built . | . . . . Authchips . | . . . . Time . | . . . . Total Robot Build Rating . | . . . . Part Schematics Acquired . | . . . . Parts Built . | . . . . Authchips . | . . . . Time . | . . . . Total Part Build Rating . | . . . . Part Studies Acquired . | . . . . Parts Repaired . | . . . . Time . | . . . . Parts Recycled . | . . . . Recycled Matter . | . . . . Retrieved Matter . | . . . . Retrieved Components 1 | . 1 . . Parts Scanalyzed . | . . . . Part Schematics Acquired . | . . . . Parts Damaged . | . . . . Bothacking | -11 -10 -10 -7 ------------ Run | Yrd Mat Sub Scr Used RIF Installer . | . . . . Robots Hacked . | . . . . Non-combat . | . . . . Combat . | . . . . Robot Hacks Applied . | . . . . Relay Couplers Released . | . . . . Fabnet Peak Effective % . | . . . . Robots Rewired . | . . . . Allies Hacked . | . . . . Hacks Repelled . | . . . . Allies | -11 -10 -10 -7 -------- Run | Yrd Mat Sub Scr Total Allies . | . . . . Largest Group . | . . . . Highest-Rated Group . | . . . . Highest-Rated Ally . | . . . . Total Orders . | . . . . Ally Attacks . | . . . . Total Damage . | . . . . Kills . | . . . . Allies Corrupted . | . . . . Allies Melted 1 | . . . 1 Intel | -11 -10 -10 -7 ------- Run | Yrd Mat Sub Scr Active Infowar (turns) 2116 | . . . 2116 Terrain 2116 | . . . 2116 Robot Analysis Total 8 | . 1 . 7 Derelict Logs Recovered 2 | . . 1 1 Drone Launches . | . . . . Drone Recoveries . | . . . . Exploration | -11 -10 -10 -7 ------------- Run | Yrd Mat Sub Scr Turns Passed 3586 | 35 327 343 2881 Spaces Moved 3498 | 33 323 350 2792 Core 51 | 2 . . 49 Treads . | . . . . Legs . | . . . . Wheels 3447 | 31 323 350 2743 Hover . | . . . . Flight . | . . . . Fastest Speed 50 | 50 80 80 50 Average Speed 88 | 78 80 84 90 Slowest Speed 115 | 80 80 95 115 Overloaded Moves . | . . . . Propulsion Burnouts . | . . . . Robots Hopped . | . . . . Potential Cave-ins . | . . . . Cave-ins Triggered . | . . . . Exploration Rate (%) 46 | 3 60 27 94 Regions Visited 3 Branch Regions 2 Pre-discovered Areas 5 | . . . 5 Known Exits Taken . | . . . . Unknown Exits Taken 3 | 1 1 1 . Scrap Searched 4 | . . . 4 Spaces Dug . | . . . . Terrain Destroyed 16 | . 16 . . Melee . | . . . . Projectile . | . . . . AOE 16 | . 16 . . Terrain Rammed . | . . . . Walls Destroyed . | . . . . Machines Disabled . | . . . . Actions | -11 -10 -10 -7 --------- Run | Yrd Mat Sub Scr Total 3956 | 38 371 379 3168 Wait 348 | . 19 12 317 Move 3495 | 32 322 349 2792 Hop . | . . . . Pick Up 29 | . 12 1 16 Fast Attach 14 | 6 1 1 6 Attach 1 | . . . 1 Detach . | . . . . Swap 7 | . 2 2 3 Drop 35 | . 4 2 29 Fire 24 | . 11 12 1 Melee . | . . . . Ram . | . . . . Kick . | . . . . Crush . | . . . . Escape Stasis . | . . . . Rewire 1 | . . . 1 Trap 2 | . . . 2 Miscellaneous . | . . . . Route ------- -11/Scrapyard -10/Materials (discovered 3 exits: [*Mat] / [*Min] / [*Sub]) -10/Subcaves -7/Scraptown (discovered 2 exits: *Fac x2) History --------- Turn | Location | Event 19 | -11/Scrapyard | Discovered new exit (range 15) 36 | -11/Scrapyard | Entered Materials 110 | -10/Materials | Discovered new exit (range 9) 313 | -10/Materials | Discovered new exit (range 6) 328 | -10/Materials | Build established: Mutant 355 | -10/Materials | Discovered new exit (range 12) 363 | -10/Materials | Entered Subcaves 364 | -10/Subcaves | Approached by a straggling Scientist 368 | -10/Subcaves | Learned Materials stockpile data 706 | -10/Subcaves | Entered Scraptown 831 | -7/Scraptown | Heard Great Nut preacher, LISTEN AND RECITE! 924 | -7/Scraptown | Scanned Subdweller tech in exchange for log data 927 | -7/Scraptown | Learned location of Warlord (-4) 987 | -7/Scraptown | Discovered new exit (range 13) 1015 | -7/Scraptown | Visited CPS Storage 1034 | -7/Scraptown | Visited Spacefarers 1069 | -7/Scraptown | Visited Symbiants 1082 | -7/Scraptown | Visited Comm Corps 1245 | -7/Scraptown | Visited Awakened 1254 | -7/Scraptown | Visited Shadow of the Wyrm 1263 | -7/Scraptown | Visited Scrapoid Research Area 1292 | -7/Scraptown | Visited UFD Registry 1292 | -7/Scraptown | Registered with UFD as "Autocircuit" 1318 | -7/Scraptown | Visited Science Guys 1355 | -7/Scraptown | Visited Junk Repository 1385 | -7/Scraptown | Visited A0-MCA Data Center 1390 | -7/Scraptown | Given a B+ rating by A0-MCA 1394 | -7/Scraptown | Found A0-MCA's Component Scanner 1489 | -7/Scraptown | Visited Scrap Suit Storage 1913 | -7/Scraptown | Visited Analyses Database 1982 | -7/Scraptown | Visited Cartography Club 2038 | -7/Scraptown | Learned location of Upper Caves (-5) 2038 | -7/Scraptown | Learned location of Cetus (-6) 2038 | -7/Scraptown | Learned location of Quarantine (-3) 2038 | -7/Scraptown | Learned 16 Materials zone layouts 2038 | -7/Scraptown | Learned 12 Factory zone layouts 2038 | -7/Scraptown | Learned 16 Research zone layouts 2038 | -7/Scraptown | Learned 4 Access zone layouts 2038 | -7/Scraptown | Learned 4 Mines zone layouts 2038 | -7/Scraptown | Learned 4 Storage zone layouts 2038 | -7/Scraptown | Learned 8 Upper Caves zone layouts 2038 | -7/Scraptown | Learned 24 Proximity Caves zone layouts 2038 | -7/Scraptown | Learned 20 Upper Caves zone layouts 2038 | -7/Scraptown | Learned Storage emergency access door positions 2038 | -7/Scraptown | Learned location of 1 exit from Factory 2038 | -7/Scraptown | Learned location of 3 exits from Factory 2038 | -7/Scraptown | Learned location of 2 exits from Research 2038 | -7/Scraptown | Identified exit to Factory 2081 | -7/Scraptown | Visited Botcube Research 2100 | -7/Scraptown | Visited Research Penetration Think Tank 2122 | -7/Scraptown | Visited Modified Component R&D 2198 | -7/Scraptown | Visited DA-N13 Charitable Foundation 2931 | -7/Scraptown | Found DCF Scrap (29 items) 3290 | -7/Scraptown | Met Optimus 3290 | -7/Scraptown | Accepted into 0bPrime 3438 | -7/Scraptown | Civil war broke out across Scraptown 3478 | -7/Scraptown | Found Voltaic Drivehammer 3499 | -7/Scraptown | Lost 6 allies 3573 | -7/Scraptown | Core integrity fell below 50% 3587 | -7/Scraptown | Core integrity fell below 20% 3587 | -7/Scraptown | Destroyed by 2F-FCA(j) with Overtuned Pulse Rifle Last Messages --------------- 03555_ Com. Wheel destroyed. 03556_ Dropped Vortex Trap. 03556_ Dropped Imp. System Shield. 03557_ Dropped Vortex Trap. 03557_ Dropped Sml. Storage Unit. 03557_ Penetrated by Bolt. 03558_ Dropped Mak. Power Source. 03558_ Dropped Gatling Laser. 03559_ Dropped Hrd. Light Armor Plating. 03559_ Installed Vortex Trap. 03560_ 4B-BUK(j) heat spikes uncontrollably. 03560_ Bolt penetrates Wall. 03561_ Installed Vortex Trap. 03562_ Penetrated by Bolt. 03568_ Acquired Mak. Hammer. 03571_ P3-AVS(h) destroyed. 03572_ Acquired 10 matter. 03574_ OJ-JU7(j) destroyed. 03577_ AT-BD4(j) suffers critical hit (Destroy). 03577_ AT-BD4(j) destroyed. Map ----- +----------------------------------------------------+ | | | | | | | | | | | | | | | | | | | ?????????????????????????????????????????????????? | | ?????????????????????????????????????????????????? | | ?????????????????????????????????????????????????? | | ?????????????????????????????????????????????????? | | ?????????????????????????????????????????????????? | | ?????????????????????????????????????????????????? | | ?????????????????????????????????????????????????? | | ?????????????????????????????????????????????????? | | ????????????????????????????#???#????????????????? | | ??????????????????????????????#??????????????????? | | ?????????????????????????????????????????????????? | | ???????????????????#?#???#???????#??#????????????? | | ????????????????????#????###??""????????????#????? | | ???????????????????####?##?????"??????????#??#???? | | ??????????????????##[!##?####?<%####??#?#????????? | | ????????"|##!!"#### %% ######=%[##???????#???????? | | ??????? p = j!!@=%jj[!!###?????????????? | | ???????? j =*%j![=%!*=###??#??????????? | | ?#???????????###### ###;###########?#?##??????? | | ??????????#???????##* ###?##########?#?##??#?#???? | | ???????????#?????###= #? # # # #??###????????? | | ?????????#???#????##%[###?# # # ## ##??#?#???#???? | | ??????#??????""??"##![# ##### # ##??##?#??????? | | ??????##??"? ??? "##!*# # # # #?##????#?????? | | #########?"? ?? "##[%" # ## #### ##????##???????? | | """""""#?#????" ""#!==" # # # #?####?????????? | | """" ""########"#"""!!" ""##X# #??##?##???????? | | " "##"""" =! = "" #### # ##?##?##???????? | | " "##""" =!%! # # #??###???#????? | | " ##""& %![[""""# ########????#?##????? | | " "##""" !=%" ######?##?????? | | ## "! " % #???##?#??????? | | ## ########### #"""" "" ""#########?###??#??????? | | ##*########### ##""" "" "########???????????#???? | | " %""""""""""" %" #########?#??##???#????? | | !% / "## =/ ###?##?????????? | | [ =%=* "# =%[ #???#??????????? | | *= !% [!%=##!=*!= #?###?#????????? | | %= =!=%=!"##%=*!###?#?#??????????? | | ! [!%=!*%!* ! %[###??#???????????? | | """""""""""""""""" "%[! !"#=*=/![=###?#??????????? | +----------------------------------------------------+ Best States ------------- Heat Dissipation 25 Energy Generation 15 Energy Capacity 170 Matter Stores 300 Matter Capacity 300 Sight Range 16 Terrain Scan Range 14 Terrain Scan Density 85 Armor Coverage 150 Evasion (%) 50 Item Schematics ----------------- None Robot Schematics ------------------ None Fabricated ------------ Nothing Repaired ---------- Nothing Studied --------- None Alien Tech Used ----------------- None Achievements -------------- None Challenges ------------ None Game ------ Seed CoolingTacticalMicrothruster Manual? 0 Play Time 00:37:09 Cumulative 122.0 hours Start 2025.11.26 @ 12:45:33 End 2025.11.26 @ 13:37:08 Sessions 1 Manual Loads 0 Difficulty Rogue Special Mode None Game No. 63 Rogue 63 Adventurer 0 Explorer 0 Win Type - Total 1 Types 1/0/0/0/0/0/0/0/0/0 Lore% 60 Gallery% 58 Achievement% 44 Wizard Run 0 Options --------- Layout 1 ASCII 0 Keyboard 0 Movement Arrows Keybinds 0 Fullscreen 2 Font 32/SmallcapsGlow Map View 50x35 Zoom Use 0% Tactical HUD 1 Map Filters NONE Filters NONE Steam 1 RUN: 1443e491-3ad8-4720-b4dc-66fcb24a9505